[Event "Titled Tuesday Blitz December 27 Early 2022"]
[White "Orzech, Dominik"]
[Black "Omariev, Maksim"]
[WhiteFideId "1115065"]
[BlackFideId "4193423"]
[WhiteElo "2308"]
[BlackElo "2304"]
[Result "1-0"]
[Round "06"]
[TimeControl "180+2"]
[Date "2022.12.27"]
[WhiteClock "0:00:22"]
[BlackClock "0:00:01"]

1. e4 {[%clk 0:02:56]}  c5 {[%clk 0:03:00]} 2. Nf3 {[%clk 0:02:55]}  d6 {[%clk 0:03:00]} 3. Nc3 {[%clk 0:02:54]}  Nf6 {[%clk 0:03:00]} 4. d4 {[%clk 0:02:55]}  cxd4 {[%clk 0:03:01]} 5. Nxd4 {[%clk 0:02:56]}  a6 {[%clk 0:03:02]} 6. Bg5 {[%clk 0:02:56]}  Nbd7 {[%clk 0:03:02]} 7. f4 {[%clk 0:02:56]}  Qc7 {[%clk 0:03:02]} 8. Qf3 {[%clk 0:02:52]}  h6 {[%clk 0:03:02]} 9. Bh4 {[%clk 0:02:50]}  g5 {[%clk 0:03:03]} 10. fxg5 {[%clk 0:02:48]}  hxg5 {[%clk 0:03:03]} 11. Bxg5 {[%clk 0:02:48]}  Qc5 {[%clk 0:03:04]} 12. Be3 {[%clk 0:02:46]}  Ne5 {[%clk 0:03:05]} 13. Qe2 {[%clk 0:02:44]}  Neg4 {[%clk 0:03:05]} 14. Bg1 {[%clk 0:02:43]}  Bh6 {[%clk 0:03:01]} 15. h3 {[%clk 0:02:31]}  Bf4 {[%clk 0:02:50]} 16. Nf5 {[%clk 0:02:27]}  Qb4 {[%clk 0:02:45]} 17. Rb1 {[%clk 0:02:10]}  Bxf5 {[%clk 0:02:40]} 18. exf5 {[%clk 0:02:09]}  Bg3+ {[%clk 0:02:41]} 19. Kd1 {[%clk 0:02:03]}  Rc8 {[%clk 0:02:36]} 20. a3 {[%clk 0:01:58]}  Qa5 {[%clk 0:02:21]} 21. Qf3 {[%clk 0:01:51]}  Be5 {[%clk 0:02:08]} 22. Qxb7 {[%clk 0:01:43]}  Qc7 {[%clk 0:00:37]} 23. Bxa6 {[%clk 0:01:36]}  Qxb7 {[%clk 0:00:23]} 24. Bxb7 {[%clk 0:01:37]}  Rc7 {[%clk 0:00:24]} 25. Bf3 {[%clk 0:01:34]}  Bxc3 {[%clk 0:00:19]} 26. bxc3 {[%clk 0:01:34]}  Kd7 {[%clk 0:00:19]} 27. Kd2 {[%clk 0:01:09]}  Ne5 {[%clk 0:00:18]} 28. Be2 {[%clk 0:01:03]}  Ne4+ {[%clk 0:00:09]} 29. Kc1 {[%clk 0:00:59]}  Nxc3 {[%clk 0:00:09]} 30. Bb5+ {[%clk 0:00:59]}  Kc8 {[%clk 0:00:05]} 31. Ba6+ {[%clk 0:00:58]}  Kd7 {[%clk 0:00:06]} 32. Rb7 {[%clk 0:00:55]}  Rxb7 {[%clk 0:00:02]} 33. Bxb7 {[%clk 0:00:55]}  Ne2+ {[%clk 0:00:03]} 34. Kd2 {[%clk 0:00:52]}  Ng3 {[%clk 0:00:03]} 35. Rh2 {[%clk 0:00:45]}  Nf1+ {[%clk 0:00:03]} 36. Kc3 {[%clk 0:00:45]}  Nxh2 {[%clk 0:00:04]} 37. Bxh2 {[%clk 0:00:45]}  Rb8 {[%clk 0:00:03]} 38. Bd5 {[%clk 0:00:44]}  Rc8+ {[%clk 0:00:01]} 39. Kb3 {[%clk 0:00:42]}  e6 {[%clk 0:00:01]} 40. Be4 {[%clk 0:00:41]}  Rc5 {[%clk 0:00:01]} 41. fxe6+ {[%clk 0:00:40]}  fxe6 {[%clk 0:00:01]} 42. g4 {[%clk 0:00:39]}  Rb5+ {[%clk 0:00:01]} 43. Ka4 {[%clk 0:00:39]}  Rc5 {[%clk 0:00:01]} 44. Kb3 {[%clk 0:00:38]}  Nc4 {[%clk 0:00:01]} 45. Bf4 {[%clk 0:00:35]}  Na5+ {[%clk 0:00:01]} 46. Kb4 {[%clk 0:00:35]}  Nc6+ {[%clk 0:00:01]} 47. Kb3 {[%clk 0:00:34]}  d5 {[%clk 0:00:01]} 48. Bd3 {[%clk 0:00:33]}  Nd4+ {[%clk 0:00:02]} 49. Kb2 {[%clk 0:00:32]}  Nc6 {[%clk 0:00:02]} 50. g5 {[%clk 0:00:32]}  e5 {[%clk 0:00:02]} 51. Be3 {[%clk 0:00:31]}  d4 {[%clk 0:00:03]} 52. Bd2 {[%clk 0:00:30]}  Ne7 {[%clk 0:00:02]} 53. h4 {[%clk 0:00:30]}  Ke6 {[%clk 0:00:02]} 54. h5 {[%clk 0:00:30]}  Kd5 {[%clk 0:00:02]} 55. h6 {[%clk 0:00:29]}  e4 {[%clk 0:00:03]} 56. h7 {[%clk 0:00:29]}  Ng6 {[%clk 0:00:03]} 57. Be2 {[%clk 0:00:28]}  Rc7 {[%clk 0:00:03]} 58. Bh5 {[%clk 0:00:27]}  Rxh7 {[%clk 0:00:03]} 59. Bxg6 {[%clk 0:00:27]}  Rg7 {[%clk 0:00:03]} 60. Be8 {[%clk 0:00:25]}  e3 {[%clk 0:00:04]} 61. Bb4 {[%clk 0:00:23]}  Rxg5 {[%clk 0:00:04]} 62. Bb5 {[%clk 0:00:22]}  Re5 {[%clk 0:00:03]} 63. Be2 {[%clk 0:00:22]}  Rf5 {[%clk 0:00:03]} 64. Kc1 {[%clk 0:00:22]}  Rf2 {[%clk 0:00:03]} 65. Kd1 {[%clk 0:00:22]}  Rh2 {[%clk 0:00:04]} 66. a4 {[%clk 0:00:21]}  Rh1+ {[%clk 0:00:04]} 67. Be1 {[%clk 0:00:21]}  Rh7 {[%clk 0:00:03]} 68. a5 {[%clk 0:00:21]}  Rb7 {[%clk 0:00:03]} 69. Bf3+ {[%clk 0:00:20]}  Kc4 {[%clk 0:00:02]} 70. Bxb7 {[%clk 0:00:21]}  Kb5 {[%clk 0:00:01]} 71. a6 {[%clk 0:00:21]}  Kb6 {[%clk 0:00:01]} 72. Ke2 {[%clk 0:00:21]}  Ka7 {[%clk 0:00:01]} 73. Kd3 {[%clk 0:00:22]} 1-0


[Site "https://www.chess.com"]

[Event "Titled Tuesday Blitz December 27 Early 2022"]
[White "Osiecki, Stanislaw"]
[Black "Zherebtsova, Alexandra"]
[WhiteFideId "1102990"]
[BlackFideId "24129518"]
[WhiteElo "2055"]
[BlackElo "2155"]
[Result "0-1"]
[Round "06"]
[TimeControl "180+2"]
[Date "2022.12.27"]
[WhiteClock "0:00:06"]
[BlackClock "0:00:16"]

1. e4 {[%clk 0:03:00]}  e5 {[%clk 0:02:53]} 2. Nf3 {[%clk 0:02:57]}  Nc6 {[%clk 0:02:53]} 3. Bb5 {[%clk 0:02:56]}  a6 {[%clk 0:02:52]} 4. Bxc6 {[%clk 0:02:56]}  dxc6 {[%clk 0:02:53]} 5. O-O {[%clk 0:02:56]}  Ne7 {[%clk 0:02:54]} 6. Nxe5 {[%clk 0:02:55]}  Qd4 {[%clk 0:02:53]} 7. Nf3 {[%clk 0:02:55]}  Qxe4 {[%clk 0:02:54]} 8. Re1 {[%clk 0:02:56]}  Qf5 {[%clk 0:02:51]} 9. Qe2 {[%clk 0:02:52]}  Qxc2 {[%clk 0:02:22]} 10. Nc3 {[%clk 0:02:45]}  Bd7 {[%clk 0:02:20]} 11. Ne5 {[%clk 0:02:43]}  Be6 {[%clk 0:02:15]} 12. Qf3 {[%clk 0:02:30]}  Qf5 {[%clk 0:02:08]} 13. Qg3 {[%clk 0:02:23]}  O-O-O {[%clk 0:01:59]} 14. d4 {[%clk 0:02:20]}  Ng6 {[%clk 0:01:56]} 15. Nxg6 {[%clk 0:02:17]}  hxg6 {[%clk 0:01:55]} 16. Bf4 {[%clk 0:02:12]}  Bd6 {[%clk 0:01:54]} 17. Bxd6 {[%clk 0:02:11]}  Rxd6 {[%clk 0:01:53]} 18. Rad1 {[%clk 0:02:07]}  Rhd8 {[%clk 0:01:52]} 19. Qe3 {[%clk 0:02:01]}  Bd5 {[%clk 0:01:27]} 20. b4 {[%clk 0:01:30]}  Qg4 {[%clk 0:01:20]} 21. f3 {[%clk 0:01:26]}  Qh5 {[%clk 0:01:19]} 22. Ne4 {[%clk 0:00:59]}  Re6 {[%clk 0:01:12]} 23. Qf4 {[%clk 0:00:49]}  Qf5 {[%clk 0:00:59]} 24. Qh4 {[%clk 0:00:27]}  Bxa2 {[%clk 0:00:51]} 25. Nc3 {[%clk 0:00:20]}  Bd5 {[%clk 0:00:45]} 26. Rxe6 {[%clk 0:00:17]}  Qxe6 {[%clk 0:00:44]} 27. Ne4 {[%clk 0:00:14]}  f6 {[%clk 0:00:34]} 28. Nc5 {[%clk 0:00:12]}  Qe3+ {[%clk 0:00:33]} 29. Kh1 {[%clk 0:00:12]}  Kb8 {[%clk 0:00:26]} 30. Qg3 {[%clk 0:00:08]}  g5 {[%clk 0:00:20]} 31. h3 {[%clk 0:00:08]}  Qf4 {[%clk 0:00:19]} 32. Qf2 {[%clk 0:00:08]}  Bc4 {[%clk 0:00:17]} 33. Re1 {[%clk 0:00:06]}  b6 {[%clk 0:00:16]} 0-1


[Site "https://www.chess.com"]

[Event "Titled Tuesday Blitz December 27 Early 2022"]
[White "Ovchinnikov, Vsevolod"]
[Black "Altman, Joshua"]
[WhiteFideId "24176842"]
[BlackFideId "426210"]
[WhiteElo "2426"]
[BlackElo "2120"]
[Result "1-0"]
[Round "06"]
[TimeControl "180+2"]
[Date "2022.12.27"]
[WhiteClock "0:00:05"]
[BlackClock "0:00:01"]

1. d4 {[%clk 0:03:00]}  Nf6 {[%clk 0:02:59]} 2. c3 {[%clk 0:03:01]}  e6 {[%clk 0:02:58]} 3. Bf4 {[%clk 0:02:51]}  b6 {[%clk 0:02:57]} 4. Nd2 {[%clk 0:02:49]}  Bb7 {[%clk 0:02:57]} 5. Ngf3 {[%clk 0:02:49]}  Be7 {[%clk 0:02:57]} 6. e3 {[%clk 0:02:46]}  O-O {[%clk 0:02:57]} 7. Bd3 {[%clk 0:02:46]}  c5 {[%clk 0:02:57]} 8. h3 {[%clk 0:02:41]}  cxd4 {[%clk 0:02:57]} 9. exd4 {[%clk 0:02:41]}  d6 {[%clk 0:02:57]} 10. O-O {[%clk 0:02:36]}  Nbd7 {[%clk 0:02:56]} 11. Re1 {[%clk 0:02:36]}  h6 {[%clk 0:02:56]} 12. Bh2 {[%clk 0:02:33]}  Re8 {[%clk 0:02:56]} 13. a4 {[%clk 0:02:29]}  a6 {[%clk 0:02:56]} 14. Nc4 {[%clk 0:02:02]}  Qc7 {[%clk 0:02:53]} 15. Bf1 {[%clk 0:02:00]}  Bf8 {[%clk 0:02:46]} 16. Ne3 {[%clk 0:01:42]}  Rad8 {[%clk 0:02:36]} 17. Nd2 {[%clk 0:01:42]}  Qb8 {[%clk 0:02:16]} 18. Be2 {[%clk 0:01:36]}  Qa8 {[%clk 0:02:14]} 19. Bf3 {[%clk 0:01:36]}  e5 {[%clk 0:02:10]} 20. Bxb7 {[%clk 0:01:33]}  Qxb7 {[%clk 0:02:11]} 21. Qb3 {[%clk 0:01:26]}  d5 {[%clk 0:01:54]} 22. dxe5 {[%clk 0:01:24]}  Nxe5 {[%clk 0:01:54]} 23. Bxe5 {[%clk 0:01:22]}  Rxe5 {[%clk 0:01:54]} 24. Nf3 {[%clk 0:01:23]}  Re4 {[%clk 0:01:48]} 25. Nf5 {[%clk 0:00:57]}  Rde8 {[%clk 0:01:34]} 26. N5d4 {[%clk 0:00:56]}  Bc5 {[%clk 0:01:31]} 27. Red1 {[%clk 0:00:55]}  Qc7 {[%clk 0:01:16]} 28. Qc2 {[%clk 0:00:44]}  Nh5 {[%clk 0:01:00]} 29. Qd3 {[%clk 0:00:31]}  Nf4 {[%clk 0:00:59]} 30. Qxa6 {[%clk 0:00:20]}  Ne2+ {[%clk 0:00:58]} 31. Kf1 {[%clk 0:00:18]}  Bxd4 {[%clk 0:00:37]} 32. cxd4 {[%clk 0:00:14]}  Nf4 {[%clk 0:00:20]} 33. Rac1 {[%clk 0:00:13]}  Qe7 {[%clk 0:00:19]} 34. Rc8 {[%clk 0:00:05]}  Kh7 {[%clk 0:00:14]} 35. Rxe8 {[%clk 0:00:05]}  Qxe8 {[%clk 0:00:15]} 36. Qb5 {[%clk 0:00:05]}  Qe6 {[%clk 0:00:12]} 37. Re1 {[%clk 0:00:03]}  Nxg2 {[%clk 0:00:07]} 38. Kxg2 {[%clk 0:00:03]}  Rxe1 {[%clk 0:00:07]} 39. Nxe1 {[%clk 0:00:03]}  Qxe1 {[%clk 0:00:08]} 40. Qxd5 {[%clk 0:00:03]}  Qb4 {[%clk 0:00:06]} 41. Qxf7 {[%clk 0:00:03]}  Qxd4 {[%clk 0:00:06]} 42. Qf5+ {[%clk 0:00:03]}  Kg8 {[%clk 0:00:07]} 43. b3 {[%clk 0:00:04]}  Qb4 {[%clk 0:00:06]} 44. Qe6+ {[%clk 0:00:04]}  Kh7 {[%clk 0:00:06]} 45. Qd5 {[%clk 0:00:04]}  Qf4 {[%clk 0:00:05]} 46. Qf3 {[%clk 0:00:03]}  Qg5+ {[%clk 0:00:05]} 47. Qg3 {[%clk 0:00:03]}  Qd5+ {[%clk 0:00:05]} 48. Qf3 {[%clk 0:00:04]}  Qg5+ {[%clk 0:00:05]} 49. Kh1 {[%clk 0:00:04]}  Qc1+ {[%clk 0:00:04]} 50. Kh2 {[%clk 0:00:05]}  Qc7+ {[%clk 0:00:05]} 51. Qg3 {[%clk 0:00:06]}  Qc2 {[%clk 0:00:03]} 52. Qe3 {[%clk 0:00:06]}  Kh8 {[%clk 0:00:03]} 53. Qxb6 {[%clk 0:00:05]}  Qe2 {[%clk 0:00:02]} 54. Qe3 {[%clk 0:00:05]}  Qb2 {[%clk 0:00:02]} 55. Kg2 {[%clk 0:00:05]}  Kh7 {[%clk 0:00:02]} 56. Qd3+ {[%clk 0:00:05]}  Kh8 {[%clk 0:00:02]} 57. a5 {[%clk 0:00:06]}  h5 {[%clk 0:00:03]} 58. a6 {[%clk 0:00:06]}  Qf6 {[%clk 0:00:03]} 59. Qc4 {[%clk 0:00:05]}  Qg5+ {[%clk 0:00:02]} 60. Kf1 {[%clk 0:00:05]}  Qc1+ {[%clk 0:00:01]} 61. Qxc1 {[%clk 0:00:05]} 1-0


[Site "https://www.chess.com"]

[Event "Titled Tuesday Blitz December 27 Early 2022"]
[White "Postnikov, Artem"]
[Black "Makhmudov, Shukhrat"]
[WhiteFideId "34153575"]
[BlackFideId "14200775"]
[WhiteElo "2197"]
[BlackElo "2115"]
[Result "1-0"]
[Round "06"]
[TimeControl "180+2"]
[Date "2022.12.27"]
[WhiteClock "0:00:06"]
[BlackClock "0:00:06"]

1. d4 {[%clk 0:03:00]}  Nf6 {[%clk 0:02:54]} 2. c4 {[%clk 0:03:01]}  e6 {[%clk 0:02:55]} 3. Nc3 {[%clk 0:03:01]}  Bb4 {[%clk 0:02:55]} 4. Qc2 {[%clk 0:03:01]}  c5 {[%clk 0:02:55]} 5. dxc5 {[%clk 0:02:59]}  Nc6 {[%clk 0:02:55]} 6. a3 {[%clk 0:02:56]}  Bxc5 {[%clk 0:02:27]} 7. Bf4 {[%clk 0:02:55]}  a6 {[%clk 0:02:23]} 8. b4 {[%clk 0:02:44]}  Be7 {[%clk 0:02:16]} 9. Nf3 {[%clk 0:02:43]}  d5 {[%clk 0:02:14]} 10. Rd1 {[%clk 0:02:41]}  O-O {[%clk 0:02:05]} 11. e3 {[%clk 0:02:36]}  Qe8 {[%clk 0:01:35]} 12. cxd5 {[%clk 0:02:16]}  exd5 {[%clk 0:01:32]} 13. Be2 {[%clk 0:02:16]}  Be6 {[%clk 0:01:25]} 14. O-O {[%clk 0:02:11]}  Rc8 {[%clk 0:01:25]} 15. Qb2 {[%clk 0:02:02]}  b5 {[%clk 0:01:20]} 16. Ne5 {[%clk 0:01:54]}  Nxe5 {[%clk 0:01:01]} 17. Bxe5 {[%clk 0:01:55]}  Nd7 {[%clk 0:01:01]} 18. Bd4 {[%clk 0:01:48]}  Bf6 {[%clk 0:01:00]} 19. Bf3 {[%clk 0:01:44]}  Bxd4 {[%clk 0:01:00]} 20. Rxd4 {[%clk 0:01:45]}  Ne5 {[%clk 0:01:00]} 21. Bxd5 {[%clk 0:01:42]}  Bxd5 {[%clk 0:00:56]} 22. Nxd5 {[%clk 0:01:38]}  Nc4 {[%clk 0:00:50]} 23. Qb3 {[%clk 0:01:17]}  Qe5 {[%clk 0:00:42]} 24. Rfd1 {[%clk 0:01:10]}  Rc6 {[%clk 0:00:28]} 25. h3 {[%clk 0:01:07]}  Rg6 {[%clk 0:00:20]} 26. Nf4 {[%clk 0:01:05]}  Rf6 {[%clk 0:00:18]} 27. a4 {[%clk 0:01:01]}  g5 {[%clk 0:00:17]} 28. Nh5 {[%clk 0:00:39]}  Rf5 {[%clk 0:00:12]} 29. axb5 {[%clk 0:00:38]}  axb5 {[%clk 0:00:12]} 30. Ng3 {[%clk 0:00:37]}  Rf6 {[%clk 0:00:06]} 31. Rd5 {[%clk 0:00:37]}  Qb2 {[%clk 0:00:04]} 32. Qxb2 {[%clk 0:00:33]}  Nxb2 {[%clk 0:00:04]} 33. Rxg5+ {[%clk 0:00:31]}  Rg6 {[%clk 0:00:04]} 34. Rdd5 {[%clk 0:00:30]}  Rxg5 {[%clk 0:00:04]} 35. Rxg5+ {[%clk 0:00:30]}  Kh8 {[%clk 0:00:05]} 36. Rxb5 {[%clk 0:00:31]}  Nd3 {[%clk 0:00:05]} 37. Rb7 {[%clk 0:00:30]}  Rc8 {[%clk 0:00:05]} 38. Ne4 {[%clk 0:00:28]}  Rc1+ {[%clk 0:00:04]} 39. Kh2 {[%clk 0:00:28]}  Rc4 {[%clk 0:00:04]} 40. Nd6 {[%clk 0:00:20]}  Rxb4 {[%clk 0:00:01]} 41. Rxb4 {[%clk 0:00:20]}  Nxb4 {[%clk 0:00:02]} 42. Nxf7+ {[%clk 0:00:21]}  Kg7 {[%clk 0:00:02]} 43. Ne5 {[%clk 0:00:22]}  Nd3 {[%clk 0:00:03]} 44. f4 {[%clk 0:00:22]}  Kh6 {[%clk 0:00:04]} 45. g4 {[%clk 0:00:22]}  Nf2 {[%clk 0:00:03]} 46. Kg3 {[%clk 0:00:22]}  Ne4+ {[%clk 0:00:03]} 47. Kh4 {[%clk 0:00:22]}  Kg7 {[%clk 0:00:03]} 48. g5 {[%clk 0:00:22]}  h6 {[%clk 0:00:04]} 49. g6 {[%clk 0:00:14]}  Kf6 {[%clk 0:00:03]} 50. Kg4 {[%clk 0:00:14]}  Nf2+ {[%clk 0:00:01]} 51. Kg3 {[%clk 0:00:14]}  Ne4+ {[%clk 0:00:01]} 52. Kg2 {[%clk 0:00:15]}  Nd6 {[%clk 0:00:01]} 53. h4 {[%clk 0:00:15]}  Nf5 {[%clk 0:00:01]} 54. h5 {[%clk 0:00:06]}  Nxe3+ {[%clk 0:00:02]} 55. Kf3 {[%clk 0:00:06]}  Nf5 {[%clk 0:00:02]} 56. Ng4+ {[%clk 0:00:05]}  Kg7 {[%clk 0:00:03]} 57. Ne3 {[%clk 0:00:05]}  Nh4+ {[%clk 0:00:03]} 58. Kg4 {[%clk 0:00:05]}  Nxg6 {[%clk 0:00:03]} 59. hxg6 {[%clk 0:00:06]}  Kxg6 {[%clk 0:00:04]} 60. f5+ {[%clk 0:00:06]}  Kf6 {[%clk 0:00:04]} 61. Kh5 {[%clk 0:00:07]}  Kg7 {[%clk 0:00:03]} 62. Ng4 {[%clk 0:00:07]}  Kh7 {[%clk 0:00:04]} 63. Nxh6 {[%clk 0:00:08]}  Kg7 {[%clk 0:00:04]} 64. Ng4 {[%clk 0:00:08]}  Kh7 {[%clk 0:00:04]} 65. f6 {[%clk 0:00:09]}  Kg8 {[%clk 0:00:04]} 66. Kg6 {[%clk 0:00:09]}  Kh8 {[%clk 0:00:05]} 67. Kf7 {[%clk 0:00:08]}  Kh7 {[%clk 0:00:05]} 68. Ke7 {[%clk 0:00:08]}  Kg6 {[%clk 0:00:05]} 69. f7 {[%clk 0:00:09]}  Kh7 {[%clk 0:00:05]} 70. f8=Q {[%clk 0:00:08]}  Kg6 {[%clk 0:00:05]} 71. Qf6+ {[%clk 0:00:09]}  Kh7 {[%clk 0:00:05]} 72. Qh6+ {[%clk 0:00:06]}  Kg8 {[%clk 0:00:06]} 73. Nf6# {[%clk 0:00:06]} 1-0


[Site "https://www.chess.com"]

[Event "Titled Tuesday Blitz December 27 Early 2022"]
[White "Preotu, Razvan"]
[Black "Zierk, Steven"]
[WhiteFideId "2613280"]
[BlackFideId "2034255"]
[WhiteElo "2475"]
[BlackElo "2488"]
[Result "0-1"]
[Round "06"]
[TimeControl "180+2"]
[Date "2022.12.27"]
[WhiteClock "0:00:17"]
[BlackClock "0:02:10"]

1. e4 {[%clk 0:03:00]}  e6 {[%clk 0:02:59]} 2. d4 {[%clk 0:03:00]}  d5 {[%clk 0:03:00]} 3. Nc3 {[%clk 0:03:01]}  Bb4 {[%clk 0:03:00]} 4. e5 {[%clk 0:03:01]}  c5 {[%clk 0:03:00]} 5. a3 {[%clk 0:03:01]}  Bxc3+ {[%clk 0:03:00]} 6. bxc3 {[%clk 0:03:02]}  Qa5 {[%clk 0:03:01]} 7. Bd2 {[%clk 0:03:01]}  Qa4 {[%clk 0:03:01]} 8. Qg4 {[%clk 0:02:59]}  Kf8 {[%clk 0:03:01]} 9. h4 {[%clk 0:02:59]}  Qxc2 {[%clk 0:03:01]} 10. dxc5 {[%clk 0:02:58]}  Ne7 {[%clk 0:02:57]} 11. h5 {[%clk 0:02:50]}  h6 {[%clk 0:02:56]} 12. Rc1 {[%clk 0:02:28]}  Qe4+ {[%clk 0:02:52]} 13. Qxe4 {[%clk 0:02:26]}  dxe4 {[%clk 0:02:53]} 14. Rh4 {[%clk 0:02:26]}  Nd7 {[%clk 0:02:52]} 15. Rxe4 {[%clk 0:02:24]}  Nxc5 {[%clk 0:02:52]} 16. Rd4 {[%clk 0:02:23]}  Nc6 {[%clk 0:02:45]} 17. Rb1 {[%clk 0:01:07]}  Nxd4 {[%clk 0:02:35]} 18. cxd4 {[%clk 0:01:08]}  Nd7 {[%clk 0:02:30]} 19. Bb4+ {[%clk 0:00:59]}  Ke8 {[%clk 0:02:30]} 20. Rc1 {[%clk 0:00:47]}  Nb6 {[%clk 0:02:28]} 21. Bd6 {[%clk 0:00:46]}  Bd7 {[%clk 0:02:23]} 22. Rc7 {[%clk 0:00:24]}  Rc8 {[%clk 0:02:22]} 23. Rxb7 {[%clk 0:00:24]}  Rc1+ {[%clk 0:02:20]} 24. Ke2 {[%clk 0:00:24]}  Bb5+ {[%clk 0:02:17]} 25. Kd2 {[%clk 0:00:24]}  Rxf1 {[%clk 0:02:17]} 26. Rb8+ {[%clk 0:00:16]}  Kd7 {[%clk 0:02:17]} 27. Rxh8 {[%clk 0:00:17]}  Rxg1 {[%clk 0:02:14]} 28. Rf8 {[%clk 0:00:18]}  Nc4+ {[%clk 0:02:11]} 29. Kc3 {[%clk 0:00:16]}  Nxd6 {[%clk 0:02:09]} 30. exd6 {[%clk 0:00:17]}  Rxg2 {[%clk 0:02:10]} 31. Rxf7+ {[%clk 0:00:17]}  Kxd6 {[%clk 0:02:10]} 0-1


[Site "https://www.chess.com"]

[Event "Titled Tuesday Blitz December 27 Early 2022"]
[White "Royal, Shreyas"]
[Black "Hirneise, Jens"]
[WhiteFideId "448869"]
[BlackFideId "24614734"]
[WhiteElo "2438"]
[BlackElo "2277"]
[Result "0-1"]
[Round "06"]
[TimeControl "180+2"]
[Date "2022.12.27"]
[WhiteClock "0:00:29"]
[BlackClock "0:00:17"]

1. e4 {[%clk 0:03:00]}  c5 {[%clk 0:02:58]} 2. Nf3 {[%clk 0:03:00]}  a6 {[%clk 0:02:59]} 3. d4 {[%clk 0:02:57]}  cxd4 {[%clk 0:02:58]} 4. Nxd4 {[%clk 0:02:58]}  Nf6 {[%clk 0:02:59]} 5. Nc3 {[%clk 0:02:56]}  e5 {[%clk 0:02:59]} 6. Nb3 {[%clk 0:02:53]}  Bb4 {[%clk 0:02:57]} 7. Bd3 {[%clk 0:02:50]}  d5 {[%clk 0:02:54]} 8. exd5 {[%clk 0:02:49]}  Nxd5 {[%clk 0:02:54]} 9. Bd2 {[%clk 0:02:48]}  Nxc3 {[%clk 0:02:41]} 10. bxc3 {[%clk 0:02:48]}  Be7 {[%clk 0:02:41]} 11. Qh5 {[%clk 0:02:44]}  Nc6 {[%clk 0:02:38]} 12. O-O {[%clk 0:02:42]}  g6 {[%clk 0:02:31]} 13. Qh6 {[%clk 0:02:40]}  Bf8 {[%clk 0:02:26]} 14. Qe3 {[%clk 0:02:38]}  Bg7 {[%clk 0:02:25]} 15. Qc5 {[%clk 0:02:29]}  Qe7 {[%clk 0:02:23]} 16. Rab1 {[%clk 0:02:28]}  O-O {[%clk 0:01:52]} 17. Qxe7 {[%clk 0:02:26]}  Nxe7 {[%clk 0:01:53]} 18. Nc5 {[%clk 0:02:26]}  b5 {[%clk 0:01:51]} 19. c4 {[%clk 0:02:24]}  bxc4 {[%clk 0:01:49]} 20. Bxc4 {[%clk 0:02:25]}  Bf5 {[%clk 0:01:49]} 21. Rb7 {[%clk 0:02:21]}  Rac8 {[%clk 0:01:35]} 22. Be3 {[%clk 0:02:21]}  Bf6 {[%clk 0:01:25]} 23. Rfb1 {[%clk 0:02:07]}  Rc6 {[%clk 0:01:13]} 24. R1b6 {[%clk 0:02:02]}  Rfc8 {[%clk 0:01:10]} 25. Bxa6 {[%clk 0:01:54]}  Nd5 {[%clk 0:01:01]} 26. Rxc6 {[%clk 0:01:54]}  Rxc6 {[%clk 0:01:02]} 27. Bb5 {[%clk 0:01:47]}  Rc8 {[%clk 0:00:56]} 28. Bd7 {[%clk 0:01:16]}  Ra8 {[%clk 0:00:43]} 29. Bxf5 {[%clk 0:01:11]}  gxf5 {[%clk 0:00:43]} 30. Nd7 {[%clk 0:01:08]}  Rxa2 {[%clk 0:00:35]} 31. h3 {[%clk 0:01:00]}  Kg7 {[%clk 0:00:34]} 32. Bc5 {[%clk 0:00:51]}  Rxc2 {[%clk 0:00:30]} 33. Bf8+ {[%clk 0:00:51]}  Kg6 {[%clk 0:00:31]} 34. Rb6 {[%clk 0:00:51]}  Nxb6 {[%clk 0:00:30]} 35. Nxb6 {[%clk 0:00:47]}  e4 {[%clk 0:00:31]} 36. Nd5 {[%clk 0:00:45]}  Be5 {[%clk 0:00:28]} 37. g3 {[%clk 0:00:43]}  Bd4 {[%clk 0:00:24]} 38. Nf4+ {[%clk 0:00:43]}  Kf6 {[%clk 0:00:23]} 39. Nh5+ {[%clk 0:00:41]}  Ke6 {[%clk 0:00:22]} 40. Nf4+ {[%clk 0:00:42]}  Kd7 {[%clk 0:00:22]} 41. h4 {[%clk 0:00:37]}  Rxf2 {[%clk 0:00:21]} 42. Kh1 {[%clk 0:00:36]}  e3 {[%clk 0:00:19]} 43. Bb4 {[%clk 0:00:35]}  e2 {[%clk 0:00:19]} 44. Nd3 {[%clk 0:00:35]}  Rf3 {[%clk 0:00:18]} 45. Ne1 {[%clk 0:00:32]}  Rxg3 {[%clk 0:00:18]} 46. Kh2 {[%clk 0:00:32]}  f4 {[%clk 0:00:19]} 47. Bd2 {[%clk 0:00:31]}  Be3 {[%clk 0:00:17]} 48. Bc3 {[%clk 0:00:30]}  Bg1+ {[%clk 0:00:17]} 49. Kh1 {[%clk 0:00:30]}  Bf2 {[%clk 0:00:18]} 50. Nd3 {[%clk 0:00:29]}  Rxd3 {[%clk 0:00:17]} 0-1


[Site "https://www.chess.com"]

[Event "Titled Tuesday Blitz December 27 Early 2022"]
[White "Saleem, Arshaq"]
[Black "Goltseva, Ekaterina"]
[WhiteFideId "2081857"]
[BlackFideId "24173770"]
[WhiteElo "2133"]
[BlackElo "2283"]
[Result "1/2-1/2"]
[Round "06"]
[TimeControl "180+2"]
[Date "2022.12.27"]
[WhiteClock "0:00:17"]
[BlackClock "0:00:05"]

1. d4 {[%clk 0:02:59]}  Nf6 {[%clk 0:02:53]} 2. c4 {[%clk 0:02:58]}  e6 {[%clk 0:02:51]} 3. g3 {[%clk 0:02:58]}  d5 {[%clk 0:02:50]} 4. Nf3 {[%clk 0:02:57]}  Bb4+ {[%clk 0:02:49]} 5. Nbd2 {[%clk 0:02:56]}  O-O {[%clk 0:02:48]} 6. Bg2 {[%clk 0:02:56]}  b6 {[%clk 0:02:48]} 7. O-O {[%clk 0:02:56]}  Bb7 {[%clk 0:02:48]} 8. a3 {[%clk 0:02:56]}  Be7 {[%clk 0:02:47]} 9. b4 {[%clk 0:02:52]}  dxc4 {[%clk 0:02:41]} 10. Nxc4 {[%clk 0:02:52]}  c5 {[%clk 0:02:33]} 11. bxc5 {[%clk 0:02:48]}  bxc5 {[%clk 0:02:34]} 12. Rb1 {[%clk 0:02:48]}  Be4 {[%clk 0:02:32]} 13. Ra1 {[%clk 0:02:29]}  Nc6 {[%clk 0:02:14]} 14. dxc5 {[%clk 0:02:22]}  Bxc5 {[%clk 0:02:11]} 15. Qa4 {[%clk 0:02:17]}  Nd4 {[%clk 0:01:29]} 16. Nxd4 {[%clk 0:02:07]}  Bxg2 {[%clk 0:01:17]} 17. Kxg2 {[%clk 0:02:08]}  Bxd4 {[%clk 0:01:12]} 18. Ra2 {[%clk 0:01:33]}  Rc8 {[%clk 0:01:01]} 19. Rc2 {[%clk 0:01:11]}  Qd5+ {[%clk 0:00:56]} 20. f3 {[%clk 0:01:11]}  Rfd8 {[%clk 0:00:20]} 21. Rd1 {[%clk 0:01:02]}  Qa8 {[%clk 0:00:14]} 22. Rcd2 {[%clk 0:01:00]}  Bc5 {[%clk 0:00:11]} 23. Bb2 {[%clk 0:00:55]}  Rxd2 {[%clk 0:00:09]} 24. Rxd2 {[%clk 0:00:55]}  Nd5 {[%clk 0:00:10]} 25. e4 {[%clk 0:00:53]}  Ne3+ {[%clk 0:00:06]} 26. Nxe3 {[%clk 0:00:53]}  Bxe3 {[%clk 0:00:07]} 27. Rc2 {[%clk 0:00:52]}  h6 {[%clk 0:00:05]} 28. Be5 {[%clk 0:00:48]}  Bb6 {[%clk 0:00:05]} 29. Bd6 {[%clk 0:00:45]}  Rxc2+ {[%clk 0:00:05]} 30. Qxc2 {[%clk 0:00:45]}  Qd8 {[%clk 0:00:05]} 31. Qc6 {[%clk 0:00:44]}  Kh7 {[%clk 0:00:04]} 32. h4 {[%clk 0:00:43]}  Bd4 {[%clk 0:00:05]} 33. h5 {[%clk 0:00:43]}  Qa5 {[%clk 0:00:05]} 34. Qc2 {[%clk 0:00:39]}  Qa6 {[%clk 0:00:03]} 35. e5+ {[%clk 0:00:39]}  Kh8 {[%clk 0:00:02]} 36. Qe4 {[%clk 0:00:32]}  Qb6 {[%clk 0:00:02]} 37. Qa8+ {[%clk 0:00:29]}  Kh7 {[%clk 0:00:02]} 38. Qe4+ {[%clk 0:00:29]}  Kh8 {[%clk 0:00:01]} 39. Qf4 {[%clk 0:00:20]}  Bc5 {[%clk 0:00:02]} 40. Qxf7 {[%clk 0:00:19]}  Bxd6 {[%clk 0:00:02]} 41. Qe8+ {[%clk 0:00:17]}  Kh7 {[%clk 0:00:02]} 42. Qg6+ {[%clk 0:00:17]}  Kh8 {[%clk 0:00:03]} 43. exd6 {[%clk 0:00:16]}  Qxd6 {[%clk 0:00:03]} 44. Qe8+ {[%clk 0:00:17]}  Kh7 {[%clk 0:00:03]} 45. Qg6+ {[%clk 0:00:17]}  Kh8 {[%clk 0:00:04]} 46. Qe8+ {[%clk 0:00:17]}  Kh7 {[%clk 0:00:04]} 47. Qg6+ {[%clk 0:00:17]}  Kh8 {[%clk 0:00:05]} 1/2-1/2


[Site "https://www.chess.com"]